bitfinex-derivatives/quotes_BTCF0:USTF0_20251204
["timestamp","ask_amount","ask_price","bid_price","bid_amount"]
[1764808409931,0.2376687,92758.0,92757.0,0.36727681]
[1764808411717,0.2376687,92758.0,92757.0,0.55930681]
[1764808412725,0.0407787,92758.0,92757.0,0.55930681]
[1764808413043,0.2376687,92758.0,92757.0,0.36727681]
[1764808413529,0.2376687,92758.0,92757.0,0.46601681]
[1764808413931,0.2376687,92758.0,92757.0,0.57635681]
[1764808415219,0.1397987,92758.0,92757.0,0.57635681]
[1764808419737,0.03,92758.0,92757.0,0.58713571]
[1764808419932,0.03,92758.0,92757.0,0.65667571]
[1764808421134,0.03,92758.0,92757.0,0.64589681]
[1764808427739,0.0607776,92768.0,92767.0,0.23544]
[1764808427937,0.03,92768.0,92767.0,0.61544]
[1764808429436,0.14203,92768.0,92767.0,0.61544]
[1764808430640,0.25884,92768.0,92767.0,0.61544]
[1764808431242,0.14203,92768.0,92767.0,0.61544]
[1764808432641,0.25884,92768.0,92767.0,0.61544]
[1764808433336,0.03,92768.0,92767.0,0.61544]
[1764808433642,0.14203,92768.0,92767.0,0.61544]
[1764808434339,0.25884,92768.0,92767.0,0.61544]
[1764808437141,0.14203,92768.0,92767.0,0.6262177]
[1764808437341,0.25884,92768.0,92767.0,0.61544]
[1764808438843,0.03,92768.0,92767.0,0.61544]
[1764808439738,0.03,92768.0,92767.0,0.71217795]
[1764808440234,0.0107759,92783.0,92782.0,0.010776]
[1764808440434,0.0107759,92783.0,92782.0,0.636216]
[1764808440435,0.0407759,92783.0,92782.0,0.636216]
[1764808440942,0.2696159,92783.0,92782.0,0.62544]
[1764808441742,0.2696159,92783.0,92782.0,0.636216]
[1764808443937,0.03,92783.0,92782.0,0.62544]
[1764808444143,0.14868,92783.0,92782.0,0.62544]
[1764808445442,0.03,92783.0,92782.0,0.62544]
[1764808446052,0.26215,92783.0,92782.0,0.62544]
[1764808456250,0.26215,92783.0,92782.0,0.39]
[1764808456549,0.26215,92783.0,92770.0,0.1201]
[1764808456550,0.2429272,92771.0,92770.0,0.1201]
[1764808456854,0.2729272,92771.0,92770.0,0.76765]
[1764808457056,0.2729272,92771.0,92770.0,0.70054]
[1764808457248,0.2729272,92771.0,92770.0,0.22806]
[1764808457449,0.2729272,92771.0,92770.0,0.2401]
[1764808457656,0.2729272,92771.0,92770.0,0.57806]
[1764808458148,0.2729272,92771.0,92770.0,0.57044]
[1764808462359,0.2729272,92771.0,92770.0,0.35044]
[1764808464058,0.2429284,92761.0,92760.0,0.19425114]
[1764808464258,0.2729284,92761.0,92760.0,0.58044]
[1764808465558,0.2729284,92761.0,92760.0,0.60344]
[1764808467354,0.2729284,92761.0,92760.0,0.49096]
[1764808467557,0.2729284,92761.0,92760.0,0.383]
[1764808467860,0.2729284,92761.0,92760.0,0.61344]
[1764808469754,0.2729284,92761.0,92760.0,0.023]
[1764808470169,0.2429287,92758.0,92757.0,0.01727681]
[1764808470349,0.23215,92741.0,92740.0,0.39302228]
[1764808470544,0.26215,92741.0,92740.0,0.59044]
[1764808470745,0.2729307,92741.0,92740.0,0.60828795]
[1764808471256,0.26222715,92741.0,92740.0,0.60828795]
[1764808471861,0.26222715,92741.0,92740.0,0.63228795]
[1764808473466,0.26222715,92741.0,92740.0,0.51980795]
[1764808474058,0.21269,92732.0,92731.0,0.00016174]
[1764808474367,0.2534718,92732.0,92731.0,0.27016174]
[1764808474761,0.2534718,92732.0,92731.0,0.28763167]
[1764808475565,0.2544718,92732.0,92731.0,0.30763167]
[1764808475761,0.2544718,92732.0,92731.0,0.03763167]
[1764808476657,0.2544718,92732.0,92731.0,0.03710227]
[1764808476857,0.2544718,92732.0,92731.0,0.04010227]
[1764808477368,0.7559118,92732.0,92731.0,0.04010227]
[1764808478060,0.7569118,92732.0,92731.0,0.03410227]
[1764808480056,0.7569118,92732.0,92617.0,0.38488879]
[1764808480057,0.2106248,92706.0,92705.0,0.20293294]
[1764808480262,0.24070195,92706.0,92705.0,0.41293294]
[1764808480467,0.24070195,92706.0,92705.0,0.43063206]
[1764808481372,0.24270195,92706.0,92705.0,0.45063206]
[1764808482767,0.03207715,92706.0,92705.0,0.46141696]
[1764808482973,0.03207715,92706.0,92705.0,0.45063206]
[1764808485474,0.03207715,92706.0,92705.0,0.24063206]
[1764808490583,0.01094554,92715.0,92714.0,0.2136339]
[1764808490881,0.04094554,92715.0,92714.0,0.2136339]
[1764808491284,0.04094554,92715.0,92714.0,0.20285]
[1764808491483,0.24078554,92715.0,92714.0,0.20285]
[1764808491681,0.24086848,92715.0,92714.0,0.20285]
[1764808491882,0.24286848,92715.0,92714.0,0.20285]
[1764808492793,0.24286848,92715.0,92714.0,0.20485]
[1764808495189,0.24286848,92715.0,92714.0,0.002]
[1764808497685,0.24286848,92715.0,92714.0,0.10476]
[1764808498295,0.24286848,92715.0,92714.0,0.20485]
[1764808499996,0.24286848,92715.0,92714.0,0.002]
[1764808500792,0.24286848,92715.0,92714.0,0.20485]
[1764808503083,0.24286848,92715.0,92714.0,0.002]
[1764808503497,0.24286848,92715.0,92714.0,0.10476]
[1764808504289,0.24286848,92715.0,92714.0,0.2024]
[1764808504897,0.23208468,92715.0,92714.0,0.2024]
[1764808505194,0.03224468,92715.0,92714.0,0.2024]
[1764808506502,0.0107815,92735.0,92729.0,0.06033]
[1764808506797,0.0107818,92732.0,92731.0,0.2004]
[1764808506996,0.03,92732.0,92731.0,0.2004]
[1764808507394,0.05,92742.0,92730.0,0.0107819]
[1764808507395,0.05,92742.0,92741.0,0.2111807]
[1764808507598,0.03,92742.0,92741.0,0.2111807]
[1764808508396,0.00016174,92751.0,92750.0,0.2111797]
[1764808508599,0.05,92761.0,92760.0,0.23089]
[1764808508804,0.03,92761.0,92760.0,0.23089]
[1764808509592,0.03,92761.0,92760.0,0.23289]
[1764808511090,0.032,92761.0,92760.0,0.23289]
[1764808511894,0.032,92761.0,92760.0,0.23089]
[1764808512095,0.032,92761.0,92760.0,0.23289]
[1764808513402,0.23655,92761.0,92760.0,0.2024]
[1764808515495,0.23655,92761.0,92760.0,0.002]
[1764808516800,0.23655,92761.0,92741.0,0.00016174]
[1764808516801,0.2153306,92742.0,92741.0,4e-08]
[1764808517104,0.2153334,92718.0,92717.0,0.2004]
[1764808517290,0.23455,92718.0,92717.0,0.2004]
[1764808517492,0.03,92718.0,92717.0,0.2004]
[1764808518101,0.13306,92718.0,92717.0,0.2004]
[1764808518306,0.13506,92718.0,92717.0,0.2004]
[1764808518604,0.13506,92718.0,92717.0,0.2024]
[1764808518799,0.23655,92718.0,92717.0,0.2024]
[1764808519400,0.29273,92718.0,92717.0,0.2024]
[1764808522704,0.032,92718.0,92717.0,0.2024]
[1764808525905,0.00016174,92727.0,92726.0,0.2004]
[1764808526207,0.00016174,92727.0,92720.0,0.06065]
[1764808526208,0.0107804,92744.0,92743.0,0.2004]
[1764808526409,0.0407804,92744.0,92743.0,0.2004]
[1764808527207,0.1438404,92744.0,92743.0,0.2004]
[1764808527408,0.1538404,92744.0,92743.0,0.2004]
[1764808527610,0.2553304,92744.0,92743.0,0.2004]
[1764808527811,0.2563304,92744.0,92743.0,0.2004]
[1764808528801,0.041,92744.0,92743.0,0.2004]
[1764808530716,0.2153314,92735.0,92734.0,0.20056174]
[1764808530905,0.2453314,92735.0,92734.0,0.20056174]
[1764808531100,0.24473186,92735.0,92734.0,0.20056174]
[1764808531614,0.23455,92735.0,92734.0,0.20056174]
[1764808532917,0.23655,92735.0,92734.0,0.20156174]
[1764808535609,0.032,92735.0,92734.0,0.20156174]
[1764808535810,0.0107783,92763.0,92752.0,0.2265694]
[1764808536018,0.03016174,92753.0,92752.0,0.2265694]
[1764808537118,0.03016174,92753.0,92752.0,0.2285694]
[1764808537119,0.03216174,92753.0,92752.0,0.2285694]
[1764808541015,0.03216174,92753.0,92752.0,0.1982494]
[1764808541214,0.03216174,92753.0,92752.0,0.18747]
[1764808541215,0.22729174,92753.0,92752.0,0.18747]
[1764808542327,0.22729174,92753.0,92752.0,0.002]
[1764808543021,0.2059099,92748.0,92747.0,0.30763]
[1764808543209,0.22513,92748.0,92747.0,0.30763]
[1764808545026,0.22513,92748.0,92747.0,0.30963]
[1764808545722,0.22713,92748.0,92747.0,0.30963]
[1764808546320,0.13305,92748.0,92747.0,0.30963]
[1764808546520,0.032,92748.0,92747.0,0.30963]
[1764808547225,0.032,92748.0,92747.0,0.18953]
[1764808547527,0.13305,92748.0,92747.0,0.18953]
[1764808548423,0.032,92748.0,92747.0,0.18953]
[1764808549223,0.22713,92748.0,92747.0,0.18953]
[1764808549417,0.13305,92748.0,92747.0,0.18953]
[1764808549612,0.032,92748.0,92747.0,0.18953]
[1764808549919,0.032,92748.0,92747.0,0.30963]
[1764808554528,0.032,92748.0,92747.0,0.40636795]
[1764808555627,0.032,92748.0,92747.0,0.30963]
[1764808563931,0.00016174,92753.0,92752.0,0.1975694]
[1764808564133,0.03016174,92753.0,92752.0,0.1975694]
[1764808564536,0.13144174,92753.0,92752.0,0.1975694]
[1764808564740,0.21769174,92753.0,92752.0,0.1975694]
[1764808565030,0.03016174,92753.0,92752.0,0.3196694]
[1764808565536,0.21969174,92753.0,92752.0,0.3196694]
[1764808565737,0.21969174,92753.0,92752.0,0.30889]
[1764808567233,0.21969174,92753.0,92752.0,0.21713]
[1764808567423,0.21969174,92753.0,92752.0,0.1221]
[1764808570934,0.21969174,92753.0,92752.0,0.002]
[1764808576650,0.21969174,92753.0,92752.0,0.19271]
[1764808577144,0.13344174,92753.0,92752.0,0.19271]
[1764808577355,0.21969174,92753.0,92752.0,0.19271]
[1764808580643,0.13344174,92753.0,92752.0,0.19271]
[1764808581045,0.03216174,92753.0,92752.0,0.19271]
[1764808582945,0.03216174,92753.0,92752.0,0.31281]
[1764808583446,0.03216174,92753.0,92752.0,0.44840158]
[1764808584843,0.05145,92778.0,92765.0,0.2014879]
[1764808585037,0.23898,92784.0,92783.0,0.2014858]
[1764808585242,0.2797557,92784.0,92783.0,0.19071]
[1764808585745,0.0922257,92784.0,92783.0,0.09697261]
[1764808585947,0.26898,92784.0,92783.0,0.19592261]
[1764808586150,0.26898,92784.0,92783.0,0.28768261]
[1764808587452,0.27798,92784.0,92783.0,0.28768261]
[1764808587953,0.27898,92784.0,92783.0,0.28768261]
[1764808588646,0.27898,92784.0,92783.0,0.2014858]
[1764808589247,0.27898,92784.0,92783.0,0.28714819]
[1764808590951,0.14128,92784.0,92783.0,0.28714819]
[1764808591151,0.04,92784.0,92783.0,0.28714819]
[1764808591347,0.22753,92784.0,92783.0,0.28714819]
[1764808592145,0.22653,92784.0,92783.0,0.28714819]
[1764808592361,0.22653,92784.0,92783.0,0.27837239]
[1764808592652,0.21853,92784.0,92783.0,0.09366239]
[1764808593955,0.21853,92784.0,92783.0,0.008]
[1764808594255,0.1812758,92783.0,92782.0,0.0107759]
[1764808594554,0.2112758,92783.0,92782.0,0.0107759]
[1764808595450,0.2122758,92783.0,92782.0,0.09129]
[1764808595956,0.2122758,92783.0,92782.0,0.09329]
[1764808597144,0.2112758,92783.0,92782.0,0.08929]
[1764808597344,0.2122758,92783.0,92782.0,0.09129]
[1764808597541,0.2122758,92783.0,92782.0,0.09329]
[1764808597740,0.2122758,92783.0,92782.0,0.18227]
[1764808598450,0.2015,92783.0,92782.0,0.18227]
[1764808602262,0.11776,92783.0,92782.0,0.18227]
[1764808602650,0.22255,92783.0,92782.0,0.18227]
[1764808604357,0.2333258,92783.0,92782.0,0.18227]
[1764808604864,0.22255,92783.0,92782.0,0.18227]
[1764808608158,0.22255,92783.0,92782.0,0.006]
[1764808608964,0.22255,92783.0,92782.0,0.10814]
[1764808609456,0.22255,92783.0,92782.0,0.006]
[1764808611664,0.22255,92783.0,92776.0,0.09682477]
[1764808611665,0.2175365,92777.0,92776.0,0.09682477]
[1764808611861,0.20676,92775.0,92774.0,0.00016174]
[1764808612061,0.273448,92764.0,92752.0,0.19220677]
[1764808612363,0.20676,92762.0,92761.0,0.07747985]
[1764808612663,0.20676,92762.0,92750.0,0.17276295]
[1764808612664,0.20676,92751.0,92750.0,0.5231258]
[1764808612861,0.23676,92751.0,92750.0,0.26418725]
[1764808614362,0.031,92751.0,92750.0,0.27218725]
[1764808614572,0.13297,92751.0,92750.0,0.27218725]
[1764808615167,0.23776,92751.0,92750.0,0.27218725]
[1764808619565,0.2485396,92751.0,92750.0,0.27218725]
[1764808620466,0.23776,92751.0,92750.0,0.28296695]
[1764808621565,0.23776,92751.0,92750.0,0.27218725]
[1764808622173,0.23776,92751.0,92750.0,0.21033725]
[1764808623476,0.23776,92751.0,92750.0,0.27017725]
[1764808624377,0.031,92751.0,92750.0,0.27017725]
[1764808625972,0.1416296,92751.0,92750.0,0.27017725]
[1764808626280,0.2414796,92751.0,92750.0,0.27017725]
[1764808626472,0.2307,92751.0,92750.0,0.27017725]
[1764808631179,0.2307,92751.0,92750.0,0.21033725]
[1764808632282,0.2307,92751.0,92750.0,0.11027725]
[1764808632979,0.2307,92751.0,92750.0,0.20735725]
[1764808635784,0.2307,92751.0,92750.0,0.20535725]
[1764808635982,0.2307,92751.0,92750.0,0.20735725]
[1764808636281,0.2297,92751.0,92750.0,0.00213725]
[1764808636475,0.2307,92751.0,92750.0,0.20752725]
[1764808636877,0.2297,92751.0,92750.0,0.20352725]
[1764808637078,0.2307,92751.0,92750.0,0.20452725]
[1764808638082,0.2307,92751.0,92750.0,0.20252725]
[1764808638384,0.2307,92751.0,92750.0,0.20352725]
[1764808638877,0.2307,92751.0,92750.0,0.20252725]
[1764808639078,0.2307,92751.0,92750.0,0.20352725]
[1764808640881,0.2307,92751.0,92750.0,0.00213725]
[1764808643286,0.2307,92751.0,92750.0,0.10644725]
[1764808643479,0.2307,92751.0,92750.0,0.20352725]
[1764808644290,0.2307,92751.0,92750.0,0.21430695]
[1764808646678,0.031,92751.0,92750.0,0.21430695]
[1764808646992,0.025,92751.0,92750.0,0.30796706]
[1764808647183,0.02511121,92751.0,92750.0,0.30796706]
[1764808651695,1.21e-06,92751.0,92750.0,0.30796706]
[1764808651881,0.00016174,92760.0,92759.0,0.2121686]
[1764808652184,0.03016174,92760.0,92759.0,0.2121686]
[1764808653387,0.03316174,92760.0,92759.0,0.2121686]
[1764808653595,0.03316174,92760.0,92759.0,0.2131686]
[1764808654291,0.03016174,92760.0,92759.0,0.2131686]
[1764808654494,0.03116174,92760.0,92759.0,0.2141686]
[1764808655190,0.03116174,92760.0,92759.0,0.2151686]
[1764808656594,0.03116174,92760.0,92759.0,0.2171686]
[1764808657091,0.03016174,92760.0,92759.0,0.2141686]
[1764808657281,0.03116174,92760.0,92759.0,0.2171686]
[1764808658981,0.21799174,92760.0,92759.0,0.2171686]
[1764808659188,0.22877024,92760.0,92759.0,0.10174067]
[1764808659390,0.22877024,92760.0,92759.0,0.005]
[1764808663798,0.22877024,92760.0,92759.0,0.18566]
[1764808670799,0.22877024,92760.0,92759.0,0.1964386]
[1764808671002,0.21799174,92760.0,92759.0,0.1964386]
[1764808681604,0.12775174,92760.0,92759.0,0.1964386]
[1764808681909,0.21799174,92760.0,92759.0,0.1964386]
[1764808683107,0.21799174,92760.0,92759.0,0.18566]
[1764808683710,0.03116174,92760.0,92759.0,0.1964386]
[1764808684508,0.03116174,92760.0,92759.0,0.29317927]
[1764808685304,0.03116174,92760.0,92759.0,0.1964386]
[1764808686810,0.03116174,92760.0,92759.0,0.3165386]
[1764808687607,0.1016756,92786.0,92785.0,0.2206555]
[1764808687808,0.1316756,92786.0,92785.0,0.2206555]
[1764808688005,0.2166656,92786.0,92785.0,0.2206555]
[1764808688711,0.20589,92786.0,92785.0,0.2206555]
[1764808688898,0.20789,92786.0,92785.0,0.2216555]
[1764808689104,0.032,92786.0,92785.0,0.2216555]
[1764808690401,0.00016165,92795.0,92794.0,0.1866746]
[1764808690605,1.0,92800.0,92799.0,0.186674]
[1764808690807,1.03,92800.0,92799.0,0.186674]
[1764808691706,1.03,92800.0,92799.0,0.1759]
[1764808692001,1.03,92800.0,92799.0,0.19163293]
[1764808692305,1.03,92800.0,92799.0,0.19363293]
[1764808692505,1.031,92800.0,92799.0,0.19863293]
[1764808692710,1.031,92800.0,92799.0,0.02273293]
[1764808693198,1.031,92800.0,92799.0,0.01973293]
[1764808693805,1.031,92800.0,92799.0,0.11428293]
[1764808694207,1.031,92800.0,92799.0,0.11228293]
[1764808694510,1.031,92800.0,92799.0,0.19463293]
[1764808694706,1.03,92800.0,92799.0,0.19263293]
[1764808694910,1.031,92800.0,92799.0,0.19463293]
[1764808695108,0.17589,92783.0,92782.0,0.09677303]
[1764808695311,0.1866664,92778.0,92777.0,0.27267303]
[1764808695609,0.2166664,92778.0,92777.0,0.19184711]
[1764808697611,0.2166664,92778.0,92777.0,0.01594711]
[1764808697914,0.20589,92778.0,92777.0,0.1769]
[1764808698210,0.031,92778.0,92777.0,0.19853639]
[1764808698615,0.00016165,92787.0,92786.0,0.1866755]
[1764808698814,0.03016165,92787.0,92786.0,0.1866755]
[1764808699818,0.04193705,92787.0,92786.0,0.001]
[1764808700017,0.21782705,92787.0,92786.0,0.001]
[1764808700319,0.21782705,92787.0,92786.0,0.002]
[1764808705206,0.21782705,92787.0,92786.0,0.1779]
[1764808705620,0.21782705,92787.0,92786.0,0.002]
[1764808709822,0.21782705,92787.0,92786.0,0.09655]
[1764808710214,0.21782705,92787.0,92786.0,0.1779]
[1764808714316,0.21782705,92787.0,92786.0,0.002]
[1764808714718,0.21782705,92787.0,92786.0,0.16659]
[1764808716124,0.03116165,92787.0,92786.0,0.16659]
[1764808721323,0.03116165,92787.0,92786.0,0.26336303]
[1764808722323,0.03116165,92787.0,92786.0,0.16659]
[1764808724626,0.05,92797.0,92796.0,0.1756743]
[1764808724827,1.0,92800.0,92799.0,0.227364]
[1764808725031,1.03,92800.0,92799.0,0.617364]
[1764808725932,1.031,92800.0,92799.0,0.7201537]
[1764808726133,1.031,92800.0,92799.0,0.623364]
[1764808726336,1.031,92800.0,92799.0,0.72009402]
[1764808726522,1.031,92800.0,92799.0,0.72209402]
[1764808727526,1.031,92800.0,92799.0,0.624364]
[1764808728733,1.03,92800.0,92799.0,0.619364]
[1764808728934,1.031,92800.0,92799.0,0.625364]
[1764808729433,0.4981753,92800.0,92799.0,0.623364]
[1764808729624,0.4981753,92800.0,92799.0,0.625364]
[1764808729625,0.40191512,92800.0,92799.0,0.625364]
[1764808730933,0.40191512,92800.0,92799.0,0.622364]
[1764808731139,0.40191512,92800.0,92799.0,0.624364]
[1764808731639,0.40191512,92800.0,92799.0,0.625364]
[1764808731836,0.00026938,92806.0,92805.0,0.1756733]
[1764808732136,0.00010672,92809.0,92805.0,0.5756733]
[1764808732340,0.03721,92834.0,92805.0,0.5756733]
[1764808732341,0.05,92819.0,92818.0,0.1649]
[1764808732638,0.20477,92834.0,92833.0,0.1649]
[1764808732838,0.24477,92834.0,92833.0,0.5549]
[1764808733238,0.234,92834.0,92833.0,0.5549]
[1764808734338,0.20756,92834.0,92833.0,0.5549]
[1764808734739,0.20956,92834.0,92833.0,0.5559]
[1764808735637,0.25899,92834.0,92833.0,0.5559]
[1764808736532,0.20956,92834.0,92833.0,0.5559]
[1764808736931,0.042,92834.0,92833.0,0.5559]
[1764808738032,0.042,92834.0,92833.0,0.6559]
[1764808738839,0.042,92834.0,92833.0,0.6569]
[1764808738840,0.041,92834.0,92833.0,0.6569]
[1764808739038,0.06,92844.0,92843.0,0.1756689]
[1764808739232,0.0107633,92892.0,92861.0,0.1756668]
[1764808739233,0.21699,92862.0,92861.0,0.1756668]
[1764808739538,0.03,92862.0,92861.0,0.5956668]
[1764808740240,0.03,92862.0,92861.0,0.68347925]
[1764808741144,0.031,92862.0,92861.0,0.68447925]
[1764808741442,0.031,92862.0,92861.0,1.18599925]
[1764808741657,0.04,92872.0,92871.0,0.1756656]
[1764808741943,0.16756,92883.0,92882.0,0.1756644]
[1764808742144,0.19756,92883.0,92882.0,0.5356644]
[1764808742451,0.19756,92883.0,92882.0,0.55229211]
[1764808743240,0.04,92893.0,92885.0,0.1649]
[1764808743444,0.11737915,92886.0,92885.0,0.5749]
[1764808743830,0.03026915,92886.0,92885.0,0.5749]
[1764808744347,0.03026915,92886.0,92885.0,0.5759]
[1764808744740,0.27906,92911.0,92910.0,0.2248811]
[1764808745042,0.30906,92911.0,92910.0,0.5848811]
[1764808745837,0.25963,92911.0,92910.0,0.5848811]
[1764808746345,0.11594,92911.0,92910.0,0.5848811]
[1764808746651,0.27463,92911.0,92910.0,0.66308561]
[1764808746946,0.272391,92911.0,92910.0,0.44696561]
[1764808747146,0.283391,92911.0,92910.0,0.361]
[1764808750035,0.283391,92911.0,92910.0,0.57512]
[1764808750036,0.27263,92911.0,92910.0,0.57512]
[1764808751355,0.27263,92911.0,92910.0,0.44082]
[1764808751942,0.27263,92911.0,92910.0,0.57512]
[1764808754851,0.043,92911.0,92910.0,0.57512]
[1764808756055,0.35364,92911.0,92910.0,0.57512]
[1764808757749,0.27263,92911.0,92910.0,0.57512]
[1764808759453,0.35364,92911.0,92910.0,0.44082]
[1764808759847,0.35364,92911.0,92910.0,0.361]
[1764808760552,0.35364,92911.0,92910.0,0.57512]
[1764808760962,0.35364,92911.0,92910.0,0.44082]
[1764808761547,0.35364,92911.0,92910.0,0.361]
[1764808766660,0.35364,92911.0,92910.0,0.051]
[1764808766858,0.240392,92902.0,92901.0,0.00016147]
[1764808767162,0.270392,92902.0,92901.0,0.38016147]
[1764808768064,0.270392,92902.0,92901.0,0.38116147]
[1764808768768,0.271392,92902.0,92901.0,0.38216147]
[1764808774472,0.271392,92902.0,92901.0,0.13216147]
[1764808774865,0.271392,92902.0,92901.0,1.47e-06]
[1764808775276,0.271392,92902.0,92882.0,0.01662771]
[1764808775277,0.34572,92883.0,92882.0,0.01662771]
[1764808775472,0.2756856,92871.0,92870.0,0.2719]
[1764808775775,0.3056856,92871.0,92870.0,0.6684378]
[1764808776469,0.29492,92871.0,92870.0,0.6684378]
[1764808776967,0.29592,92871.0,92870.0,0.6744378]
[1764808778066,0.29592,92871.0,92870.0,0.6754378]
[1764808778567,0.29592,92871.0,92870.0,0.6714378]
[1764808778976,0.29492,92871.0,92870.0,0.6694378]
[1764808779276,0.29592,92871.0,92870.0,0.6704378]
[1764808779866,0.29592,92871.0,92870.0,0.6694378]
[1764808780061,0.29592,92871.0,92870.0,0.6704378]
[1764808780473,0.031,92871.0,92870.0,0.6704378]
[1764808785171,0.031,92871.0,92870.0,0.2904378]
[1764808790477,0.28883,92871.0,92870.0,0.2904378]
[1764808791283,0.2995956,92871.0,92870.0,0.2904378]
[1764808793672,0.28883,92871.0,92870.0,0.2904378]
[1764808794378,0.28883,92871.0,92870.0,0.1621378]
[1764808794588,0.28883,92871.0,92870.0,0.0185378]
[1764808794784,0.28883,92871.0,92870.0,0.1497978]
[1764808795080,0.28883,92871.0,92870.0,0.2851978]
[1764808800287,0.28883,92871.0,92870.0,0.0185378]
[1764808800971,0.28883,92871.0,92870.0,0.2851978]
[1764808801378,0.28883,92871.0,92870.0,0.2959635]
[1764808801580,0.031,92871.0,92870.0,0.2959635]
[1764808802583,0.28883,92871.0,92870.0,0.2959635]
[1764808803183,0.1654,92871.0,92870.0,0.2959635]
[1764808803776,0.031,92871.0,92870.0,0.2959635]
[1764808803976,0.031,92871.0,92870.0,0.39250046]
[1764808804277,0.031,92871.0,92870.0,0.2959635]
[1764808804477,0.00016087,92880.0,92879.0,0.2545547]
[1764808804679,0.03016087,92880.0,92879.0,0.2545547]
[1764808804985,0.03016087,92880.0,92879.0,0.3513521]
[1764808805173,0.03016087,92880.0,92879.0,0.2545547]
[1764808805678,0.03016087,92880.0,92879.0,0.2565547]
[1764808805877,0.03116087,92880.0,92879.0,0.2565547]
[1764808807089,0.28063087,92880.0,92879.0,0.35335088]
[1764808807285,0.27963087,92880.0,92879.0,0.35235088]
[1764808807494,0.28063087,92880.0,92879.0,0.1396047]
[1764808807786,0.28063087,92880.0,92879.0,0.2575547]
[1764808807978,0.03116087,92880.0,92879.0,0.2575547]
[1764808809984,0.03072352,92880.0,92879.0,0.3776547]
[1764808810187,0.03072352,92880.0,92879.0,0.51297828]
[1764808810985,0.03072352,92880.0,92879.0,0.51197828]
[1764808811183,0.03072352,92880.0,92879.0,0.51297828]
[1764808811386,0.03072352,92880.0,92879.0,0.3786547]
[1764808814191,0.03072352,92880.0,92879.0,0.4786547]
[1764808814488,0.05,92890.0,92889.0,0.2545535]
[1764808814678,0.05,92900.0,92899.0,0.2545524]
[1764808814876,0.05,92910.0,92909.0,0.24379]
[1764808815082,0.28947,92910.0,92909.0,0.24379]
[1764808815783,0.28947,92910.0,92909.0,0.2545512]
[1764808816179,0.04,92910.0,92909.0,0.2545512]
[1764808816382,0.04,92910.0,92909.0,0.34277451]
[1764808816581,0.05,92920.0,92909.0,0.34277451]
[1764808816582,0.05,92920.0,92919.0,0.2545501]
[1764808816791,0.00026903,92926.0,92925.0,0.2545494]
[1764808817093,0.04026903,92926.0,92925.0,0.2545494]
[1764808817589,3e-08,92926.0,92925.0,0.2545494]
[1764808818496,3e-08,92926.0,92925.0,0.3555494]
[1764808818992,0.00100003,92926.0,92925.0,0.2635494]
[1764808819386,0.05,92936.0,92935.0,0.2545482]
[1764808819582,0.29947,92946.0,92945.0,0.2545471]
[1764808819789,0.27947,92946.0,92945.0,0.24379]
[1764808820696,0.0808972,92944.0,92940.0,0.0107576]
[1764808820893,0.24947,92941.0,92940.0,0.0107576]
[1764808821090,0.27947,92941.0,92940.0,0.2545476]
[1764808821690,0.24947,92929.0,92928.0,0.24379]
[1764808821892,0.24947,92929.0,92919.0,0.01076]
[1764808821893,0.24947,92927.0,92919.0,0.01076]
[1764808822094,0.27947,92927.0,92910.0,0.66142629]
[1764808822294,0.27947,92927.0,92913.0,0.0107607]
[1764808822597,0.27947,92927.0,92916.0,0.0107603]
[1764808822789,0.27947,92927.0,92912.0,0.0107608]
[1764808823092,0.24947,92913.0,92912.0,0.1366008]
[1764808823288,0.27947,92913.0,92912.0,0.1366008]
[1764808823495,0.27947,92913.0,92912.0,0.2545508]
[1764808824486,0.27947,92913.0,92912.0,0.2555508]
[1764808825092,0.28047,92913.0,92912.0,0.2585508]
[1764808826695,0.031,92913.0,92912.0,0.2585508]
[1764808826995,0.031,92913.0,92912.0,0.3585508]
[1764808830091,0.031,92913.0,92912.0,0.4306208]
[1764808830992,0.00016116,92922.0,92921.0,0.2545498]
[1764808831194,0.05,92932.0,92931.0,0.2545487]
[1764808831397,0.29947,92942.0,92941.0,0.2545475]
[1764808831697,0.27947,92942.0,92941.0,0.2545475]
[1764808833594,0.28147,92942.0,92941.0,0.2545475]
[1764808833796,0.29347,92942.0,92941.0,0.2555475]
[1764808834997,0.044,92942.0,92941.0,0.2555475]
[1764808836000,0.042,92942.0,92941.0,0.2555475]
[1764808836194,0.042,92942.0,92941.0,0.34320007]
[1764808836394,0.02099966,92942.0,92941.0,0.45079463]
[1764808836903,0.00999966,92942.0,92941.0,0.45379463]
[1764808837104,0.00999966,92942.0,92941.0,0.55579463]
[1764808837804,0.00999966,92942.0,92941.0,0.35020007]
[1764808838908,0.00999966,92942.0,92941.0,0.34820007]
[1764808839205,0.00999966,92942.0,92941.0,0.35020007]
[1764808840102,0.05,92952.0,92951.0,0.2485764]
[1764808840406,0.23600892,92966.0,92965.0,0.2485747]
[1764808840706,0.26600892,92966.0,92965.0,0.2485747]
[1764808841106,0.26600892,92966.0,92965.0,0.25457542]
[1764808841407,0.26600892,92966.0,92965.0,0.01675542]
[1764808841607,0.26600892,92966.0,92965.0,0.001]
[1764808841811,0.27676352,92966.0,92965.0,0.001]
[1764808842195,0.27676352,92966.0,92965.0,0.01813496]
[1764808842704,0.2464957,92957.0,92956.0,0.00016138]
[1764808842911,0.2764957,92957.0,92956.0,0.01704873]
[1764808843112,0.2764957,92957.0,92956.0,0.00016138]
[1764808843501,0.2464969,92946.0,92945.0,0.1201]
[1764808843807,0.26574,92946.0,92945.0,0.37459387]
[1764808844008,0.03,92946.0,92945.0,0.37459387]
[1764808844707,0.03,92946.0,92945.0,0.75459387]
[1764808844904,0.1451,92946.0,92945.0,0.75659387]
[1764808845307,0.1451,92946.0,92945.0,0.75459387]
[1764808845509,0.1461,92946.0,92945.0,0.75959387]
[1764808845915,0.1461,92946.0,92945.0,0.76059387]
[1764808846216,0.031,92946.0,92945.0,0.76059387]
[1764808847313,0.031,92946.0,92945.0,0.64049387]
[1764808847907,0.26674,92946.0,92945.0,0.64049387]
[1764808851913,0.031,92946.0,92945.0,0.64049387]